{"text_format":"3","workbook":"xlsx","n_sheets":1,"sheets":["AH"],"not_rendered":{"images":1,"defined_names":2},"read":"whole","date_system":"1900"}

{"sheet":"AH","index":0,"n_rows":474,"n_cols":16,"rows_kept":474,"merged":[[1,0,1,2]]}
["Item No","Description","Spares and Consumables Required","OP","IN","IR","GO","Dur/\nHtr\n(Hrs)","Dur/\nUnit\n(Hrs)","SE","A","W","S/S","L","Price/\nHtr","Price/\nUnit"]
["Air Heater",null,null,"X","X","X","X"]
[0,"General",null,"X","X","X","X"]
[{"$f":"A3+0.01","v":0.01},"Site establishment for OP",null,"X"]
[{"$f":"A4+0.01","v":0.02},"Site establishment for IN",null,null,"X"]
[0.03,"Site establishment for IR",{"$nulls":3},"X"]
[0.04,"Site establishment for GO",{"$nulls":4},"X"]
[0.05,"Site de-establishment for OP",null,"X"]
[{"v":0.060000000000000005,"d":"0.06"},"Site de-establishment for IN",null,null,"X"]
[0.07,"Site de-establishment for IR",{"$nulls":3},"X"]
[0.08,"Site de-establishment for GO",{"$nulls":4},"X"]
[0.09,"Open inspection doors top (5 off)",null,"X","X","X","X"]
[{"v":0.09999999999999999,"d":"0.10"},"Open inspection doors bottom (5 off) (scaffolding required in 4 areas but excluded)",null,"X","X","X","X"]
[{"v":0.10999999999999999,"d":"0.11"},"Close inspection doors top including fitting new seals",null,"X","X","X","X"]
[{"v":0.11999999999999998,"d":"0.12"},"Close inspection doors bottom including fitting new seals",null,"X","X","X","X"]
[{"v":0.12999999999999998,"d":"0.13"},"Open locating bearing guard ",null,null,"X","X","X"]
[{"v":0.13999999999999999,"d":"0.14"},"Close locating bearing guard",null,null,"X","X","X"]
[0.15,"Retract axial seal door ",null,null,"X","X","X"]
[0.16,"Re-engage axial seal door ",null,null,"X","X","X"]
[0.17,"Remove stainless steel compensator cover plates",null,null,"X","X","X"]
[{"v":0.18000000000000002,"d":"0.18"},"Refit stainless steel compensator cover plates",null,null,"X","X","X"]
[{"v":0.19000000000000003,"d":"0.19"},"Open both pinion drive inspection doors",null,null,"X","X","X"]
[{"v":0.20000000000000004,"d":"0.20"},"Close both pinion inspection doors",null,null,"X","X","X"]
[{"v":0.21000000000000005,"d":"0.21"},"Open pin rack inspection door",null,null,"X","X","X"]
[{"v":0.22000000000000006,"d":"0.22"},"Close pin rack inspection door",null,null,"X","X","X"]
[{"v":0.23000000000000007,"d":"0.23"},"Clean view ports",null,null,"X","X","X"]
[1,"Air Heater Inspection OP",null,"X","X","X","X"]
[{"$f":"A27+0.01","v":1.01},"Visually inspect the air heater for any damage and erosion",null,"X"]
[2,"Air Heater Inspection IN",null,"X","X","X","X"]
[{"$f":"A29+0.01","v":2.01},"a) Visually inspect air heater rotor  \nb) Visually inspect radial seals for damage and erosion\nc) Visually inspect axial seals for damage and wear including holding strips\nd) Visually inspect circumferential seals \ne) Visually inspect sector plates \nf) Visually inspect axial seal plates \ng) Visually inspect top and bottom tyre for damage and erosion\nh) Visually inspect casing internally for damage and erosion\ni) Visually inspect drive system for oil leaks\nj) Visually inspect lubrication system for oil leaks.\nk) Visually inspect packs for damage, erosion and loose plates\nl) Visually inspect stay rods in ducting for damage and wear\nm) Visually inspect fire protection system for damage and erosion.\nn) Visually inspect the expansion joint covers for damage and wear. \no) Visually inspect the hub seals for damage and wear\np) Visually inspect the sootblower system for erosion and damage.\nq) Visually inspect spring pin to seal frame connection\nr) Inspect pin rack and drive system\ns) Inspect shaft seals\nt) Inspect cast iron wear shoes",null,null,"X"]
[3,"Air Heater Inspection IR",null,"X","X","X","X"]
[{"$f":"A31+0.01","v":3.01},"a) Visually inspect air heater rotor  \nb) Visually inspect radial seals for damage and erosion\nc) Visually inspect axial seals for damage and wear including holding strips\nd) Visually inspect circumferential seals for damage and wear\ne) Visually inspect sector plates for damage and erosion\nf) Visually inspect axial seal plates for damage and erosion\ng) Visually inspect top and bottom tyre for damage and erosion\nh) Visually inspect casing internally for damage and erosion\ni) Visually inspect drive system for oil leaks\nj) Visually inspect lubrication system for oil leaks.\nk) Visually inspect packs for damage, erosion and loose plates\nl) Visually inspect stay rods in ducting for damage and wear\nm) Visually inspect fire protection system for damage and erosion.\nn) Visually inspect the expansion joint covers for damage and wear. \no) Visually inspect the hub seals for damage and wear\np) Visually inspect the sootblower system for erosion and damage.\nq) Visually inspect spring pin to seal frame connection\nr) Inspect pin rack and drive system\ns) Inspect shaft seals\nt) Inspect cast iron wear shoes",{"$nulls":3},"X"]
[4,"Air Heater Inspection GO",null,"X","X","X","X"]
[{"$f":"A33+0.01","v":4.01},"a) Visually inspect air heater rotor  \nb) Visually inspect radial seals for damage and erosion\nc) Visually inspect axial seals for damage and wear including holding strips\nd) Visually inspect circumferential seals for damage and wear\ne) Visually inspect sector plates for damage and erosion\nf) Visually inspect axial seal plates for damage and erosion\ng) Visually inspect top and bottom tyre for damage and erosion\nh) Visually inspect casing internally for damage and erosion\ni) Visually inspect drive system for oil leaks\nj) Visually inspect lubrication system for oil leaks.\nk) Visually inspect packs for damage, erosion and loose plates\nl) Visually inspect stay rods in ducting for damage and wear\nm) Visually inspect fire protection system for damage and erosion.\nn) Visually inspect the expansion joint covers for damage and wear. \no) Visually inspect the hub seals for damage and wear\np) Visually inspect the sootblower system for erosion and damage.\nq) Visually inspect spring pin to seal frame connection\nr) Inspect pin rack and drive system\ns) Inspect shaft seals\nt) Inspect cast iron wear shoes",{"$nulls":4},"X"]
[5,"Rotor Radial Seals",null,"X","X","X","X"]
[{"$f":"A35+0.01","v":5.01},"Remove the complete set of radial seals on the hot end"]
[{"$f":"A36+0.01","v":5.02},"Refit the complete set of radial seals on the hot end."]
[{"v":5.029999999999999,"d":"5.03"},"Remove the complete set of radial seals on the cold  end"]
[{"v":5.039999999999999,"d":"5.04"},"Refit the complete set of radial seals on the cold end."]
[{"v":5.049999999999999,"d":"5.05"},"Remove 1 radial seal plate hot end"]
[{"v":5.059999999999999,"d":"5.06"},"Refit 1 radial seal plate hot end"]
[{"v":5.0699999999999985,"d":"5.07"},"Remove 4 radial seal plate hot end"]
[{"v":5.079999999999998,"d":"5.08"},"Refit 4 radial seal plate hot end"]
[{"v":5.089999999999998,"d":"5.09"},"Remove 16 radial seal plate hot end"]
[{"v":5.099999999999998,"d":"5.10"},"Refit 16 radial seal plate hot end"]
[{"v":5.109999999999998,"d":"5.11"},"Remove 1 radial seal plate cold end"]
[{"v":5.119999999999997,"d":"5.12"},"Refit 1 radial seal plate cold end"]
[{"v":5.129999999999997,"d":"5.13"},"Remove 4 radial seal plate cold end"]
[{"v":5.139999999999997,"d":"5.14"},"Refit 4 radial seal plate cold end"]
[{"v":5.149999999999997,"d":"5.15"},"Remove 16 radial seal plate cold end"]
[{"v":5.159999999999997,"d":"5.16"},"Refit 16 radial seal plate cold end"]
[6,"Hub Seals",null,"X","X","X","X"]
[{"$f":"A52+0.01","v":6.01},"Remove the hub seals hot end "]
[6.02,"Refit the hub seals hot end"]
[{"v":6.029999999999999,"d":"6.03"},"Remove the hub seals cold end "]
[{"v":6.039999999999999,"d":"6.04"},"Refit the hub seals cold end"]
[7,"Shaft Labyrinth Seals",null,"X","X","X","X"]
[{"$f":"A57+0.01","v":7.01},"Remove hot end shaft labyrinth seals"]
[7.02,"Refit hot end shaft labyrinth seals"]
[8,"Axial Seals",null,"X","X","X","X"]
[{"$f":"A60+0.01","v":8.01},"Remove all the axial seals"]
[8.02,"Refit all the axial seals"]
[8.03,"Remove 4 axial seals"]
[8.04,"Refit 4 axial seals."]
[{"v":8.049999999999999,"d":"8.05"},"Remove all the axial seal holding strips"]
[{"v":8.059999999999999,"d":"8.06"},"Refit all the axial seal holding strips"]
[{"$f":"A66+0.01","v":{"v":8.069999999999999,"d":"8.07"}},"Remove 8 off the axial seal holding strips "]
[{"v":8.079999999999998,"d":"8.08"},"Refit 8 off the axial seal holding strips"]
[9,"Circumferential Seals Gas Side Hot End",null,"X","X","X","X"]
[{"$f":"A69+0.01","v":9.01},"Remove all the circumferential seals on the hot end gas side"]
[{"$f":"A70+0.01","v":9.02},"Refit all the circumferential seals on the hot end gas side including setting to correct seal settings"]
[9.03,"Remove 8 sections off the circumferential seals gas side hot end"]
[9.04,"Refit 8 sections off the circumferential seals gas side hot end including setting to correct seal settings"]
[{"v":9.049999999999999,"d":"9.05"},"Adjust complete hot end gas side circumferential seals to correct settings"]
[10,"Circumferential Seals Gas Side Cold End",null,"X","X","X","X"]
[{"$f":"A75+0.01","v":10.01},"Remove all the circumferential seals on the cold end gas side"]
[{"$f":"A76+0.01","v":10.02},"Refit all the circumferential seals on the cold end gas side including setting to correct seal settings"]
[10.03,"Remove 8 sections off the circumferential seals cold end gas side"]
[10.04,"Refit 8 sections off the circumferential seals cold end gas side including setting to correct seal settings"]
[{"v":10.049999999999999,"d":"10.05"},"Adjust complete cold end gas side circumferential seals to correct settings"]
[11,"Circumferential Seals Secondary Air Side Hot End Both Sectors",null,"X","X","X","X"]
[{"$f":"A81+0.01","v":11.01},"Remove all the circumferential seals on the hot end air side"]
[{"$f":"A82+0.01","v":11.02},"Refit all the circumferential seals on the hot end air side including setting to correct seal settings"]
[11.03,"Remove 8 sections off the circumferential seals hot end air side"]
[11.04,"Refit 8 sections off the circumferential seals hot end air side including setting to correct seal settings"]
[{"v":11.049999999999999,"d":"11.05"},"Adjust complete hot end air side circumferential seals to correct settings"]
[12,"Circumferential Seals Secondary Air Side Cold End Both Sectors",null,"X","X","X","X"]
[{"$f":"A87+0.01","v":12.01},"Remove all the circumferential seals on the cold end air side"]
[{"$f":"A88+0.01","v":12.02},"Refit all the circumferential seals on the cold end air side including setting to correct seal settings"]
[12.03,"Remove 8 sections off the circumferential seals cold end air side"]
[12.04,"Refit 8 sections off the circumferential seals cold end air side including setting to correct seal settings"]
[{"v":12.049999999999999,"d":"12.05"},"Adjust complete cold end air side circumferential seals to correct settings"]
[13,"Cover Plates Hot End",null,"X","X","X","X"]
[{"$f":"A93+0.01","v":13.01},"Remove radial to circumferential cover plate air side"]
[{"$f":"A94+0.01","v":13.02},"Refit radial to circumferential cover plate air side"]
[13.03,"Remove radial to circumferential cover plate gas side"]
[13.04,"Refit radial to circumferential cover plate gas side"]
[14,"Cover Plates Cold End",null,"X","X","X","X"]
[{"$f":"A98+0.01","v":14.01},"Remove radial to circumferential cover plate air side"]
[14.02,"Refit radial to circumferential cover plate air side"]
[14.03,"Remove radial to circumferential cover plate gas side"]
[14.04,"Refit radial to circumferential cover plate gas side"]
[15,"Seal Frame Beam 1 Hot End FFP Side ",null,"X","X","X","X"]
[{"$f":"A103+0.01","v":15.01},"Remove the complete seal frame beam"]
[{"$f":"A104+0.01","v":15.02},"Refit the complete seal frame beam"]
[15.03,"Remove one section of the seal frame beam"]
[15.04,"Refit one section of the seal frame beam"]
[{"v":15.049999999999999,"d":"15.05"},"Remove four sections of the seal frame beam"]
[{"v":15.059999999999999,"d":"15.06"},"Refit four sections of the seal frame beam"]
[16,"Seal Frame Beam 2 Hot End",null,"X","X","X","X"]
[{"$f":"A110+0.01","v":16.01},"Remove the complete seal frame beam"]
[{"$f":"A111+0.01","v":{"v":16.020000000000003,"d":"16.02"}},"Refit the complete seal frame beam"]
[{"v":16.030000000000005,"d":"16.03"},"Remove one section of the seal frame beam"]
[{"v":16.040000000000006,"d":"16.04"},"Refit one section of the seal frame beam"]
[{"v":16.050000000000008,"d":"16.05"},"Remove four sections of the seal frame beam"]
[{"v":16.06000000000001,"d":"16.06"},"Refit four sections of the seal frame beam"]
[17,"Seal Frame Beam 3 Hot End",null,"X","X","X","X"]
[{"$f":"A117+0.01","v":17.01},"Remove the complete seal frame beam"]
[{"$f":"A118+0.01","v":{"v":17.020000000000003,"d":"17.02"}},"Refit the complete seal frame beam"]
[{"v":17.030000000000005,"d":"17.03"},"Remove one section of the seal frame beam"]
[{"v":17.040000000000006,"d":"17.04"},"Refit one section of the seal frame beam"]
[{"v":17.050000000000008,"d":"17.05"},"Remove four sections of the seal frame beam"]
[{"v":17.06000000000001,"d":"17.06"},"Refit four sections of the seal frame beam"]
[18,"Seal Frame Beam 4 Hot End (Boiler Side)",null,"X","X","X","X"]
[{"$f":"A124+0.01","v":18.01},"Remove the complete seal frame beam"]
[{"$f":"A125+0.01","v":{"v":18.020000000000003,"d":"18.02"}},"Refit the complete seal frame beam"]
[{"v":18.030000000000005,"d":"18.03"},"Remove one section of the seal frame beam"]
[{"v":18.040000000000006,"d":"18.04"},"Refit one section of the seal frame beam"]
[{"v":18.050000000000008,"d":"18.05"},"Remove four sections of the seal frame beam"]
[{"v":18.06000000000001,"d":"18.06"},"Refit four sections of the seal frame beam"]
[19,"Seal Frame Beam 1 Cold End FFP Side ",null,"X","X","X","X"]
[{"$f":"A131+0.01","v":19.01},"Remove the complete seal frame beam"]
[{"$f":"A132+0.01","v":{"v":19.020000000000003,"d":"19.02"}},"Refit the complete seal frame beam"]
[{"v":19.030000000000005,"d":"19.03"},"Remove one section of the seal frame beam"]
[{"v":19.040000000000006,"d":"19.04"},"Refit one section of the seal frame beam"]
[{"v":19.050000000000008,"d":"19.05"},"Remove four sections of the seal frame beam"]
[{"v":19.06000000000001,"d":"19.06"},"Refit four sections of the seal frame beam"]
[20,"Seal Frame Beam 2 Cold End",null,"X","X","X","X"]
[{"$f":"A138+0.01","v":20.01},"Remove the complete seal frame beam"]
[{"$f":"A139+0.01","v":{"v":20.020000000000003,"d":"20.02"}},"Refit the complete seal frame beam"]
[{"v":20.030000000000005,"d":"20.03"},"Remove one section of the seal frame beam"]
[{"v":20.040000000000006,"d":"20.04"},"Refit one section of the seal frame beam"]
[{"v":20.050000000000008,"d":"20.05"},"Remove four sections of the seal frame beam"]
[{"v":20.06000000000001,"d":"20.06"},"Refit four sections of the seal frame beam"]
[21,"Seal Frame Beam 3 Cold End",null,"X","X","X","X"]
[{"$f":"A145+0.01","v":21.01},"Remove the complete seal frame beam"]
[{"$f":"A146+0.01","v":{"v":21.020000000000003,"d":"21.02"}},"Refit the complete seal frame beam"]
[{"v":21.030000000000005,"d":"21.03"},"Remove one section of the seal frame beam"]
[{"v":21.040000000000006,"d":"21.04"},"Refit one section of the seal frame beam"]
[{"v":21.050000000000008,"d":"21.05"},"Remove four sections of the seal frame beam"]
[{"v":21.06000000000001,"d":"21.06"},"Refit four sections of the seal frame beam"]
[22,"Seal Frame Beam 4 Cold End (Boiler Side)",null,"X","X","X","X"]
[{"$f":"A152+0.01","v":22.01},"Remove the complete seal frame beam"]
[{"$f":"A153+0.01","v":{"v":22.020000000000003,"d":"22.02"}},"Refit the complete seal frame beam"]
[{"v":22.030000000000005,"d":"22.03"},"Remove one section of the seal frame beam"]
[{"v":22.040000000000006,"d":"22.04"},"Refit one section of the seal frame beam"]
[{"v":22.050000000000008,"d":"22.05"},"Remove four sections of the seal frame beam"]
[{"v":22.06000000000001,"d":"22.06"},"Refit four sections of the seal frame beam"]
[23,"Spring Pins Hot End",null,"X","X","X","X"]
[{"$f":"A159+0.01","v":23.01},"Remove all 25 off spring pin assemblies and actuators on the hot end"]
[{"v":23.020000000000003,"d":"23.02"},"Refit all 25 off spring pin assemblies and actuators on the hot end"]
[{"v":23.030000000000005,"d":"23.03"},"Remove 5 off spring pin assemblies and actuators on the hot end"]
[{"v":23.040000000000006,"d":"23.04"},"Refit 5 off spring pin assemblies and actuators on the hot end"]
[{"v":23.050000000000008,"d":"23.05"},"Remove 1 off spring pin assembly and actuator on the hot end"]
[{"v":23.06000000000001,"d":"23.06"},"Refit 1 off spring pin assembly and actuator on the hot end"]
[{"v":23.07000000000001,"d":"23.07"},"Remove all 8 off hub spring pin assemblies on the hot end"]
[{"v":23.080000000000013,"d":"23.08"},"Refit all 8 off hub spring pin assemblies on the hot end"]
[{"v":23.090000000000014,"d":"23.09"},"Remove 5 off hub spring pin assemblies on the hot end"]
[{"v":23.100000000000016,"d":"23.10"},"Refit 5 off hub spring pin assemblies on the hot end"]
[{"v":23.110000000000017,"d":"23.11"},"Remove 1 off hub spring pin assembly on the hot end"]
[{"v":23.12000000000002,"d":"23.12"},"Refit 1 off hub spring pin assembly on the hot end"]
[{"v":23.13000000000002,"d":"23.13"},"Service the spring pin glands on all 33 off the spring pin assemblies hot end"]
[{"v":23.140000000000022,"d":"23.14"},"Service the spring pin glands on 5 off spring pin assemblies hot end"]
[{"v":23.150000000000023,"d":"23.15"},"Service the spring pin gland on 1 off spring pin assembly hot end"]
[24,"Spring Pins Cold End",null,"X","X","X","X"]
[24.01,"Remove all (25 off) spring pin assemblies and actuators on the cold end"]
[{"v":24.020000000000003,"d":"24.02"},"Refit all (25 off) spring pin assemblies and actuators on the cold end"]
[{"v":24.030000000000005,"d":"24.03"},"Remove 5 off spring pin assemblies and actuators on the cold end"]
[{"v":24.040000000000006,"d":"24.04"},"Refit all 5 off spring pin assemblies and actuators on the cold end"]
[{"v":24.050000000000008,"d":"24.05"},"Remove 1 off spring pin assembly and actuator on the cold end"]
[{"v":24.06000000000001,"d":"24.06"},"Refit 1 off spring pin assembly and actuator on the cold end"]
[{"v":24.07000000000001,"d":"24.07"},"Remove all 8 off hub spring pin assemblies on the cold end"]
[{"v":24.080000000000013,"d":"24.08"},"Refit all 8 off hub spring pin assemblies on the cold end"]
[{"v":24.090000000000014,"d":"24.09"},"Remove 5 off hub spring pin assemblies on the cold end"]
[{"v":24.100000000000016,"d":"24.10"},"Refit 5 off hub spring pin assemblies on the cold end"]
[{"v":24.110000000000017,"d":"24.11"},"Remove 1 off hub spring pin assembly on the cold end"]
[{"v":24.12000000000002,"d":"24.12"},"Refit 1 off hub spring pin assembly on the cold end"]
[{"v":24.13000000000002,"d":"24.13"},"Service the spring pin glands on all 33 off the spring pin assemblies cold end"]
[{"v":24.140000000000022,"d":"24.14"},"Service the spring pin glands on 5 off spring pin assemblies cold end"]
[{"v":24.150000000000023,"d":"24.15"},"Service the spring pin gland on 1 off spring pin assembly cold end"]
[25,"Spring Pins Axial Seals",null,"X","X","X","X"]
[25.01,"Remove all 2 off spring pin assemblies and actuators on the axial seals"]
[{"v":25.020000000000003,"d":"25.02"},"Refit all 2 off spring pin assemblies and actuators on the axial seals"]
[{"v":25.030000000000005,"d":"25.03"},"Remove all 12 off spring pin assemblies on the axial seals"]
[{"v":25.040000000000006,"d":"25.04"},"Refit all 12 off spring pin assemblies on the axial seals"]
[{"v":25.050000000000008,"d":"25.05"},"Remove 4 off spring pin assemblies on the axial seals"]
[{"v":25.06000000000001,"d":"25.06"},"Refit 4 off spring pin assemblies on the axial seals"]
[{"v":25.07000000000001,"d":"25.07"},"Remove 1 off spring pin assembly on the axial seals"]
[{"v":25.080000000000013,"d":"25.08"},"Refit 1 off spring pin assembly on the axial seals"]
[{"v":25.090000000000014,"d":"25.09"},"Service the spring pin glands on all 14 off the spring pin assemblies on the axial seals"]
[{"v":25.100000000000016,"d":"25.10"},"Service the spring pin glands on 4 off spring pin assemblies on the axial seals"]
[{"v":25.110000000000017,"d":"25.11"},"Service the spring pin gland on 1 off spring pin assembly on the axial seals\\"]
[26,"Stainless Steel Expansion Joints ",null,"X","X","X","X"]
[{"$f":"A203+0.01","v":26.01},"Remove complete set of stainless steel expansion joints hot end",{"$nulls":4},"X"]
[{"$f":"A204+0.01","v":{"v":26.020000000000003,"d":"26.02"}},"Refit complete set of stainless steel expansion joints hot end",{"$nulls":4},"X"]
[{"v":26.030000000000005,"d":"26.03"},"Remove complete set of stainless steel expansion joints cold end",{"$nulls":4},"X"]
[{"v":26.040000000000006,"d":"26.04"},"Refit complete set of stainless steel expansion joints cold end",{"$nulls":4},"X"]
[{"v":26.050000000000008,"d":"26.05"},"Remove hubs section stainless steel expansion joints hot end"]
[{"v":26.06000000000001,"d":"26.06"},"Refit hub section stainless steel expansion joints hot end"]
[{"v":26.07000000000001,"d":"26.07"},"Remove hubs section stainless steel expansion joints cold end"]
[{"v":26.080000000000013,"d":"26.08"},"Refit hub section stainless steel expansion joints cold end"]
[{"v":26.090000000000014,"d":"26.09"},"Remove gas side complete section stainless steel expansion joints hot end",null,null,"X","X"]
[{"v":26.100000000000016,"d":"26.10"},"Refit gas side complete section stainless steel expansion joints hot end",null,null,"X","X"]
[{"v":26.110000000000017,"d":"26.11"},"Remove gas side complete section stainless steel expansion joints cold end",null,null,"X"]
[{"v":26.12000000000002,"d":"26.12"},"Refit gas side complete section stainless steel expansion joints cold end",null,null,"X"]
[{"v":26.13000000000002,"d":"26.13"},"Remove primary air section stainless steel expansion joints hot end",null,null,"X"]
[{"v":26.140000000000022,"d":"26.14"},"Refit primary air section of stainless steel expansion joints hot end",null,null,"X"]
[{"v":26.150000000000023,"d":"26.15"},"Remove primary air section stainless steel expansion joints cold end",null,null,"X"]
[{"v":26.160000000000025,"d":"26.16"},"Refit primary air section stainless steel expansion joints cold end",null,null,"X"]
[{"v":26.170000000000027,"d":"26.17"},"Remove one secondary air section stainless steel expansion joints hot end"]
[{"v":26.180000000000028,"d":"26.18"},"Refit one secondary air section stainless steel expansion joints hot end"]
[{"v":26.19000000000003,"d":"26.19"},"Remove one secondary air section stainless steel expansion joints cold end"]
[{"v":26.20000000000003,"d":"26.20"},"Refit one secondary air section stainless steel expansion joints cold end"]
[{"v":26.210000000000033,"d":"26.21"},"Remove both secondary air section stainless steel expansion joints hot end"]
[{"v":26.220000000000034,"d":"26.22"},"Refit both secondary air section stainless steel expansion joints hot end"]
[{"v":26.230000000000036,"d":"26.23"},"Remove both secondary air section stainless steel expansion joints cold end"]
[{"v":26.240000000000038,"d":"26.24"},"Refit both secondary air section stainless steel expansion joints cold end"]
[27,"Cast Iron Wear Seals Hot End",null,"X","X","X","X"]
[{"$f":"A228+0.01","v":27.01},"Remove Beam 1 (FFP Side) cover plates"]
[{"v":27.020000000000003,"d":"27.02"},"Refit Beam 1 (FFP Side) cover plates"]
[{"v":27.030000000000005,"d":"27.03"},"Remove Beam 2 cover plates"]
[{"v":27.040000000000006,"d":"27.04"},"Refit Beam 2 cover plates"]
[{"v":27.050000000000008,"d":"27.05"},"Remove Beam 3 cover plates"]
[{"v":27.06000000000001,"d":"27.06"},"Refit Beam 3 cover plates"]
[{"v":27.07000000000001,"d":"27.07"},"Remove Beam 4 (Boiler Side) cover plates"]
[{"v":27.080000000000013,"d":"27.08"},"Refit Beam 4 (Boiler Side) cover plates"]
[{"$f":"A236+0.01","v":{"v":27.090000000000014,"d":"27.09"}},"Remove Beam 1 (FFP Side) corner cover strip at periphery",null,null,"X","X","X"]
[{"v":27.100000000000016,"d":"27.10"},"Refit Beam 1 (FFP Side) corner cover strip at periphery",null,null,"X","X","X"]
[{"v":27.110000000000017,"d":"27.11"},"Remove Beam 2 corner cover strip at periphery",null,null,"X","X","X"]
[{"v":27.12000000000002,"d":"27.12"},"Refit Beam 2 corner cover strip at periphery",null,null,"X","X","X"]
[{"v":27.13000000000002,"d":"27.13"},"Remove Beam 3 corner cover strip at periphery",null,null,"X","X","X"]
[{"v":27.140000000000022,"d":"27.14"},"Refit Beam 3 corner cover strip at periphery",null,null,"X","X","X"]
[{"v":27.150000000000023,"d":"27.15"},"Remove Beam 4 (Boiler Side) corner cover strip at periphery",null,null,"X","X","X"]
[{"v":27.160000000000025,"d":"27.16"},"Refit Beam 4 (Boiler Side) corner cover strip at periphery",null,null,"X","X","X"]
[{"v":27.170000000000027,"d":"27.17"},"Remove complete set of cast iron wear seals hot end",{"$nulls":4},"X"]
[{"v":27.180000000000028,"d":"27.18"},"Refit complete set of cast iron wear seals hot end",{"$nulls":4},"X"]
[{"v":27.19000000000003,"d":"27.19"},"Remove cast iron wear seals on Beam 1 (FFP Side) hot end"]
[{"v":27.20000000000003,"d":"27.20"},"Refit cast iron wear seals on Beam 1 (FFP Side)  hot end"]
[{"v":27.210000000000033,"d":"27.21"},"Remove cast iron wear seals on Beam 2 hot end"]
[{"v":27.220000000000034,"d":"27.22"},"Refit cast iron wear seals on Beam 2 hot end"]
[{"v":27.230000000000036,"d":"27.23"},"Remove cast iron wear seals on Beam 3 hot end"]
[{"v":27.240000000000038,"d":"27.24"},"Refit cast iron wear seals on Beam 3 hot end"]
[{"v":27.25000000000004,"d":"27.25"},"Remove cast iron wear seals on Beam 4 (Boiler Side)  hot end"]
[{"v":27.26000000000004,"d":"27.26"},"Refit cast iron wear seals on Beam 4 (Boiler Side) hot end"]
[{"v":27.270000000000042,"d":"27.27"},"Remove one cast iron wear seal hot end"]
[{"v":27.280000000000044,"d":"27.28"},"Refit one cast iron wear seal hot end"]
[{"v":27.290000000000045,"d":"27.29"},"Remove five cast iron wear seals hot end",null,null,"X","X"]
[{"v":27.300000000000047,"d":"27.30"},"Refit five cast iron wear seals hot end",null,null,"X","X"]
[{"v":27.31000000000005,"d":"27.31"},"Remove primary periphery section cast iron wear seals hot end"]
[{"v":27.32000000000005,"d":"27.32"},"Refit primary periphery section cast iron wear seals hot end"]
[28,"Cast Iron Wear Seals Cold End",null,"X","X","X","X"]
[{"$f":"A261+0.01","v":28.01},"Remove Beam 1 (FFP Side) cover plates"]
[{"v":28.020000000000003,"d":"28.02"},"Refit Beam 1 (FFP Side) cover plates"]
[{"v":28.030000000000005,"d":"28.03"},"Remove Beam 2 cover plates"]
[{"v":28.040000000000006,"d":"28.04"},"Refit Beam 2 cover plates"]
[{"v":28.050000000000008,"d":"28.05"},"Remove Beam 3 cover plates"]
[{"v":28.06000000000001,"d":"28.06"},"Refit Beam 3 cover plates"]
[{"v":28.07000000000001,"d":"28.07"},"Remove Beam 4 (Boiler Side) cover plates"]
[{"v":28.080000000000013,"d":"28.08"},"Refit Beam 4 (Boiler Side) cover plates"]
[{"$f":"A269+0.01","v":{"v":28.090000000000014,"d":"28.09"}},"Remove Beam 1 (FFP Side) corner cover strip at periphery",null,null,"X","X","X"]
[{"v":28.100000000000016,"d":"28.10"},"Refit Beam 1 (FFP Side) corner cover strip at periphery",null,null,"X","X","X"]
[{"v":28.110000000000017,"d":"28.11"},"Remove Beam 2 corner cover strip at periphery",null,null,"X","X","X"]
[{"v":28.12000000000002,"d":"28.12"},"Refit Beam 2 corner cover strip at periphery",null,null,"X","X","X"]
[{"v":28.13000000000002,"d":"28.13"},"Remove Beam 3 corner cover strip at periphery",null,null,"X","X","X"]
[{"v":28.140000000000022,"d":"28.14"},"Refit Beam 3 corner cover strip at periphery",null,null,"X","X","X"]
[{"v":28.150000000000023,"d":"28.15"},"Remove Beam 4 (Boiler Side) corner cover strip at periphery",null,null,"X","X","X"]
[{"v":28.160000000000025,"d":"28.16"},"Refit Beam 4 (Boiler Side) corner cover strip at periphery",null,null,"X","X","X"]
[{"v":28.170000000000027,"d":"28.17"},"Remove complete set of cast iron wear seals cold end",{"$nulls":4},"X"]
[{"v":28.180000000000028,"d":"28.18"},"Refit complete set of cast iron wear seals cold end",{"$nulls":4},"X"]
[{"v":28.19000000000003,"d":"28.19"},"Remove cast iron wear seals on Beam 1 (FFP Side) cold end"]
[{"v":28.20000000000003,"d":"28.20"},"Refit cast iron wear seals on Beam 1 (FFP Side)  cold end"]
[{"v":28.210000000000033,"d":"28.21"},"Remove cast iron wear seals on Beam 2 cold end"]
[{"v":28.220000000000034,"d":"28.22"},"Refit cast iron wear seals on Beam 2 cold end"]
[{"v":28.230000000000036,"d":"28.23"},"Remove cast iron wear seals on Beam 3 cold end"]
[{"v":28.240000000000038,"d":"28.24"},"Refit cast iron wear seals on Beam 3 cold end"]
[{"v":28.25000000000004,"d":"28.25"},"Remove cast iron wear seals on Beam 4 (Boiler Side)  cold end"]
[{"v":28.26000000000004,"d":"28.26"},"Refit cast iron wear seals on Beam 4 (Boiler Side) cold end"]
[{"v":28.270000000000042,"d":"28.27"},"Remove one cast iron wear seal cold end"]
[{"v":28.280000000000044,"d":"28.28"},"Refit one cast iron wear seal cold end"]
[{"v":28.290000000000045,"d":"28.29"},"Remove five cast iron wear seals cold end",null,null,"X","X"]
[{"v":28.300000000000047,"d":"28.30"},"Refit five cast iron wear seals cold end",null,null,"X","X"]
[{"v":28.31000000000005,"d":"28.31"},"Remove primary periphery section cast iron wear seals cold end"]
[{"v":28.32000000000005,"d":"28.32"},"Refit primary periphery section cast iron wear seals cold end"]
[29,"Rotor",null,"X","X","X","X"]
[{"$f":"A294+0.01","v":29.01},"Remove complete rotor hot end circumferential seal (tyre) "]
[{"$f":"A295+0.01","v":{"v":29.020000000000003,"d":"29.02"}},"Refit complete rotor hot end circumferential seal (tyre) "]
[{"v":29.030000000000005,"d":"29.03"},"Remove complete rotor cold end circumferential seal (tyre) "]
[{"v":29.040000000000006,"d":"29.04"},"Refit complete rotor cold end circumferential seal (tyre) "]
[{"v":29.050000000000008,"d":"29.05"},"Remove all rotor element pack support strips intermediate end"]
[{"v":29.06000000000001,"d":"29.06"},"Refit all rotor element pack support strips intermediate end"]
[{"v":29.07000000000001,"d":"29.07"},"Remove all rotor element pack support strips cold end"]
[{"v":29.080000000000013,"d":"29.08"},"Refit all rotor element pack support strips cold end"]
[{"v":29.090000000000014,"d":"29.09"},"Remove 50 off complete basket element pack support strips cold end",null,null,"X","X"]
[{"v":29.100000000000016,"d":"29.10"},"Refit 50 off complete basket element pack support strips cold end  ",null,null,"X","X"]
[{"v":29.110000000000017,"d":"29.11"},"Remove all element pack gap sealing strips hot end"]
[{"v":29.12000000000002,"d":"29.12"},"Refit all element pack gap sealing strips hot end"]
[{"v":29.13000000000002,"d":"29.13"},"Remove all element pack gap sealing strips cold end"]
[{"v":29.140000000000022,"d":"29.14"},"Refit all element pack gap sealing strips cold end"]
[{"v":29.150000000000023,"d":"29.15"},"Remove 50 off complete basket element pack sealing strips hot end ",null,null,"X","X"]
[{"v":29.160000000000025,"d":"29.16"},"Refit 50 off complete basket element pack sealing strips hot end ",null,null,"X","X"]
[{"v":29.170000000000027,"d":"29.17"},"Remove 50 off complete basket element pack sealing strips cold end ",null,null,"X","X"]
[{"v":29.180000000000028,"d":"29.18"},"Refit 50 off complete basket element pack sealing strips cold end ",null,null,"X","X"]
[{"v":29.19000000000003,"d":"29.19"},"Remove 10 off complete basket element pack sealing strips hot end ",null,null,"X","X"]
[{"v":29.20000000000003,"d":"29.20"},"Refit 10 off complete basket element pack sealing strips hot end ",null,null,"X","X"]
[{"v":29.210000000000033,"d":"29.21"},"Remove 10 off complete basket element pack sealing strips cold end ",null,null,"X","X"]
[{"v":29.220000000000034,"d":"29.22"},"Refit 10 off complete basket element pack sealing strips cold end ",null,null,"X","X"]
[{"v":29.230000000000036,"d":"29.23"},"Inspect complete rotor after element packs have been removed for damage and wear. Submit detailed report",{"$nulls":4},"X"]
[{"v":29.240000000000038,"d":"29.24"},"Carry out rotor radial and annular plate window repairs by cutting out and rewelding 5.0m in total of 10mm thick plate when packs are removed"]
[{"v":29.25000000000004,"d":"29.25"},"Carry out rotor radial and annular plate window repairs by cutting out and rewelding 20.0m in total of 10mm thick plate when packs are removed"]
[{"v":29.26000000000004,"d":"29.26"},"Carry out rotor radial and annular plate window repairs by cutting out and rewelding 50.0m in total of 10mm thick plate when packs are removed",{"$nulls":4},"X"]
[{"v":29.270000000000042,"d":"29.27"},"Carry out rotor radial and annular plate window repairs by cutting out and rewelding 100.0m in total of 10mm thick plate when packs are removed"]
[{"v":29.280000000000044,"d":"29.28"},"Carry out rotor radial and annular plate window repairs by cutting out and rewelding 5.0m in total of 12mm thick plate when packs are removed"]
[{"v":29.290000000000045,"d":"29.29"},"Carry out rotor radial and annular plate window repairs by cutting out and rewelding 20.0m in total of 12mm thick plate when packs are removed"]
[{"v":29.300000000000047,"d":"29.30"},"Carry out rotor radial and annular plate window repairs by cutting out and rewelding 50.0m in total of 12mm thick plate when packs are removed"]
[{"v":29.31000000000005,"d":"29.31"},"Carry out rotor radial and annular plate window repairs by cutting out and rewelding 100.0m in total of 12mm thick plate when packs are removed",{"$nulls":4},"X"]
[30,"Element Packs",null,"X","X","X","X"]
[{"$f":"30+0.01","v":30.01},"Remove 3 element packs and take one plate pair out of each element pack for mass loss analysis. Mark elements with steel tags. Submit mass loss report for air heater packs erosion monitoring. Refit the 3 element packs",null,null,"X","X","X"]
[{"$f":"30+0.01","v":30.01},"Remove all element pack cover strips on the hot end on 4 sides on each basket",{"$nulls":4},"X"]
[{"$f":"A328+0.01","v":{"v":30.020000000000003,"d":"30.02"}},"Refit all element pack cover strips on the hot end on 4 sides on each basket",{"$nulls":4},"X"]
[{"v":30.030000000000005,"d":"30.03"},"Remove all the welded rotor radial sealing strips"]
[{"v":30.040000000000006,"d":"30.04"},"Refit all the welded rotor radial sealing strips"]
[31,"High Pressure Washing - Elements",null,"X","X","X","X"]
[{"$f":"A332+0.01","v":31.01},"Carry out complete air heater water washing with high pressure system from the cold end of the air heater for a duration of 72 hours including all equipment required"]
[{"$f":"A333+0.01","v":{"v":31.020000000000003,"d":"31.02"}},"Carry out complete air heater water washing with high pressure system from the cold end of the air heater for a duration of 96 hours including all equipment required"]
[{"v":31.030000000000005,"d":"31.03"},"Carry out complete air heater water washing with high pressure system from the cold end of the air heater for a duration of 120 hours including all equipment required"]
[32,"Bearings",null,"X","X","X","X"]
[{"$f":"A336+0.01","v":32.01},"Remove the guide bearing"]
[{"$f":"A337+0.01","v":{"v":32.019999999999996,"d":"32.02"}},"Refit the guide bearing"]
[{"v":32.029999999999994,"d":"32.03"},"Remove the support bearing"]
[{"v":32.03999999999999,"d":"32.04"},"Refit the support bearing"]
[{"v":32.04999999999999,"d":"32.05"},"Remove the shaft cooling water pivot and inspect"]
[{"v":32.05999999999999,"d":"32.06"},"Refit the shaft cooling water pivot"]
[{"v":32.069999999999986,"d":"32.07"},"Remove the labyrinth seal on the guide bearing"]
[{"v":32.079999999999984,"d":"32.08"},"Refit the labyrinth seal on the guide bearing"]
[{"v":32.08999999999998,"d":"32.09"},"Remove the labyrinth seal on the support bearing"]
[{"v":32.09999999999998,"d":"32.10"},"Refit the labyrinth seal on the support bearing"]
[{"v":32.10999999999998,"d":"32.11"},"Drain guide bearing oil in oil bath"]
[{"v":32.119999999999976,"d":"32.12"},"Refill guide bearing oil bath with oil"]
[{"v":32.129999999999974,"d":"32.13"},"Drain support bearing oil in oil bath"]
[{"v":32.13999999999997,"d":"32.14"},"Refill support bearing oil bath with oil"]
[33,"Drive System",null,"X","X","X","X"]
[{"$f":"A351+0.01","v":33.01},"Remove 1 drive motor",{"$nulls":4},"X"]
[{"$f":"A352+0.01","v":{"v":33.019999999999996,"d":"33.02"}},"Refit 1 drive motor",{"$nulls":4},"X"]
[{"v":33.029999999999994,"d":"33.03"},"Remove 2 drive motors",{"$nulls":4},"X"]
[{"v":33.03999999999999,"d":"33.04"},"Refit 2 drive motors",{"$nulls":4},"X"]
[{"$f":"A355+0.01","v":{"v":33.04999999999999,"d":"33.05"}},"Remove motor pinion gear"]
[{"v":33.05999999999999,"d":"33.06"},"Refit motor pinion gear"]
[{"v":33.069999999999986,"d":"33.07"},"Remove gearbox oil seal"]
[{"v":33.079999999999984,"d":"33.08"},"Refit gearbox oil seal"]
[{"$f":"A359+0.01","v":{"v":33.08999999999998,"d":"33.09"}},"Remove gearbox oil and refill gearbox with new oil through filtration unit",null,null,"X","X","X"]
[{"$f":"A360+0.01","v":{"v":33.09999999999998,"d":"33.10"}},"Remove 1 complete gearbox and lower gearbox to ground level",{"$nulls":4},"X"]
[{"v":33.10999999999998,"d":"33.11"},"Refit 1 complete gearbox including lifting the gearbox up to the air heater level from ground level ",{"$nulls":4},"X"]
[{"v":33.119999999999976,"d":"33.12"},"Remove 2 complete gearbox and lower to gearbox to ground level",{"$nulls":4},"X"]
[{"v":33.129999999999974,"d":"33.13"},"Refit 2 complete gearbox including lifting the gearbox up to the air heater level from ground level ",{"$nulls":4},"X"]
[{"$f":"A364+0.01","v":{"v":33.13999999999997,"d":"33.14"}},"Remove 1 drive pinion",{"$nulls":3},"X","X"]
[{"v":33.14999999999997,"d":"33.15"},"Turn and refit 1 drive pinion",{"$nulls":3},"X"]
[{"v":33.15999999999997,"d":"33.16"},"Refit 1 drive pinion",{"$nulls":4},"X"]
[{"v":33.169999999999966,"d":"33.17"},"Remove 2 drive pinions",{"$nulls":3},"X","X"]
[{"v":33.179999999999964,"d":"33.18"},"Turn and refit 2 drive pinions",{"$nulls":3},"X"]
[{"v":33.18999999999996,"d":"33.19"},"Refit 2 drive pinions",{"$nulls":4},"X"]
[{"v":33.19999999999996,"d":"33.20"},"Align 1 drive pinion height ",{"$nulls":4},"X"]
[{"v":33.20999999999996,"d":"33.21"},"Align 1 drive pinion penetration ",{"$nulls":4},"X"]
[{"v":33.219999999999956,"d":"33.22"},"Align 2 drive pinions height ",{"$nulls":4},"X"]
[{"v":33.229999999999954,"d":"33.23"},"Align 2 drive pinions penetration ",{"$nulls":4},"X"]
[34,"Pin Rack",null,"X","X","X","X"]
[{"$f":"A375+0.01","v":34.01},"Remove complete pin rack",{"$nulls":4},"X"]
[{"$f":"A376+0.01","v":{"v":34.019999999999996,"d":"34.02"}},"Refit complete pin rack to correct alignment",{"$nulls":4},"X"]
[{"v":34.029999999999994,"d":"34.03"},"Weld repair 2 off pin rack holding strips",null,null,"X"]
[{"v":34.03999999999999,"d":"34.04"},"Weld repair 10 off pin rack holding strips",{"$nulls":3},"X","X"]
[{"v":34.04999999999999,"d":"34.05"},"Remove 2 off pin rack holding strips"]
[{"v":34.05999999999999,"d":"34.06"},"Refit 2 off pin rack holding strips"]
[{"v":34.069999999999986,"d":"34.07"},"Remove 10 off pin rack holding strips"]
[{"v":34.079999999999984,"d":"34.08"},"Refit 10 off pin rack holding strips"]
[35,"Ducting Hot End",null,"X","X","X","X"]
[{"$f":"A384+0.01","v":35.01},"Carry out window repairs of 5.0m in total of 6mm thick ducting plate by cutting out and re-welding with new material.  Excluding removal of cladding and insulation if required.",null,null,"X"]
[{"$f":"A385+0.01","v":{"v":35.019999999999996,"d":"35.02"}},"Carry out window repairs of 10.0m in total of 6mm thick ducting plate by cutting out and re-welding with new material.  Excluding removal of cladding and insulation if required.",{"$nulls":3},"X","X"]
[{"v":35.029999999999994,"d":"35.03"},"Carry out window repairs of 50.0m in total of 6mm thick ducting plate by cutting out and re-welding with new material.  Excluding removal of cladding and insulation if required.",{"$nulls":4},"X"]
[{"v":35.03999999999999,"d":"35.04"},"Carry out window repairs of 1.0m in total of 8mm thick ducting plate by cutting out and re-welding with new material. Excluding removal of cladding and insulation if required."]
[{"v":35.04999999999999,"d":"35.05"},"Carry out window repairs of 5.0m in total of 8mm thick ducting plate by cutting out and re-welding with new material.  Excluding removal of cladding and insulation if required."]
[{"v":35.05999999999999,"d":"35.06"},"Carry out window repairs of 10.0m in total of 8mm thick ducting plate by cutting out and re-welding with new material.  Excluding removal of cladding and insulation if required."]
[{"v":35.069999999999986,"d":"35.07"},"Carry out window repairs of 20.0m in total of 8mm thick ducting plate by cutting out and re-welding with new material.  Excluding removal of cladding and insulation if required."]
[{"v":35.079999999999984,"d":"35.08"},"Carry out window repairs of 5.0m in total of 10mm thick ducting plate by cutting out and re-welding with new material.  Excluding removal of cladding and insulation if required."]
[{"v":35.08999999999998,"d":"35.09"},"Carry out window repairs of 10.0m in total of 10mm thick ducting plate by cutting out and re-welding with new material.  Excluding removal of cladding and insulation if required."]
[{"v":35.09999999999998,"d":"35.10"},"Carry out window repairs of 20.0m in total of 10mm thick ducting plate by cutting out and re-welding with new material.  Excluding removal of cladding and insulation if required."]
[36,"Ducting Cold End",null,"X","X","X","X"]
[{"$f":"A395+0.01","v":36.01},"Carry out window repairs of 5.0m in total of 6mm thick ducting plate by cutting out and re-welding with new material.  Excluding removal of cladding and insulation if required.",null,null,"X"]
[{"$f":"A396+0.01","v":{"v":36.019999999999996,"d":"36.02"}},"Carry out window repairs of 10.0m in total of 6mm thick ducting plate by cutting out and re-welding with new material.  Excluding removal of cladding and insulation if required.",{"$nulls":3},"X","X"]
[{"$f":"A397+0.01","v":{"v":36.029999999999994,"d":"36.03"}},"Carry out window repairs of 50.0m in total of 6mm thick ducting plate by cutting out and re-welding with new material.  Excluding removal of cladding and insulation if required.",{"$nulls":4},"X"]
[{"$f":"A398+0.01","v":{"v":36.03999999999999,"d":"36.04"}},"Carry out window repairs of 5.0m in total of 8mm thick ducting plate by cutting out and re-welding with new material.  Excluding removal of cladding and insulation if required."]
[{"v":36.04999999999999,"d":"36.05"},"Carry out window repairs of 10.0m in total of 8mm thick ducting plate by cutting out and re-welding with new material.  Excluding removal of cladding and insulation if required."]
[{"v":36.05999999999999,"d":"36.06"},"Carry out window repairs of 20.0m in total of 8mm thick ducting plate by cutting out and re-welding with new material.  Excluding removal of cladding and insulation if required."]
[{"v":36.069999999999986,"d":"36.07"},"Carry out window repairs of 1.0m in total of 10mm thick ducting plate by cutting out and re-welding with new material. Excluding removal of cladding and insulation if required."]
[{"v":36.079999999999984,"d":"36.08"},"Carry out window repairs of 5.0m in total of 10mm thick ducting plate by cutting out and re-welding with new material.  Excluding removal of cladding and insulation if required."]
[{"v":36.08999999999998,"d":"36.09"},"Carry out window repairs of 10.0m in total of 10mm thick ducting plate by cutting out and re-welding with new material.  Excluding removal of cladding and insulation if required."]
[{"v":36.09999999999998,"d":"36.10"},"Carry out window repairs of 20.0m in total of 10mm thick ducting plate by cutting out and re-welding with new material.  Excluding removal of cladding and insulation if required."]
[37,"Transition Ducting Hot End",null,"X","X","X","X"]
[{"$f":"A406+0.01","v":37.01},"Carry out window repairs of 5.0m in total of 6mm thick ducting plate by cutting out and re-welding with new material.  Excluding removal of cladding and insulation if required.",null,null,"X","X"]
[{"$f":"A407+0.01","v":{"v":37.019999999999996,"d":"37.02"}},"Carry out window repairs of 10.0m in total of 6mm thick ducting plate by cutting out and re-welding with new material.  Excluding removal of cladding and insulation if required.",{"$nulls":4},"X"]
[{"v":37.029999999999994,"d":"37.03"},"Carry out window repairs of 20.0m in total of 6mm thick ducting plate by cutting out and re-welding with new material.  Excluding removal of cladding and insulation if required."]
[{"v":37.03999999999999,"d":"37.04"},"Carry out window repairs of 5.0m in total of 8mm thick ducting plate by cutting out and re-welding with new material.  Excluding removal of cladding and insulation if required."]
[{"v":37.04999999999999,"d":"37.05"},"Carry out window repairs of 10.0m in total of 8mm thick ducting plate by cutting out and re-welding with new material.  Excluding removal of cladding and insulation if required."]
[{"v":37.05999999999999,"d":"37.06"},"Carry out window repairs of 5.0m in total of 10mm thick ducting plate by cutting out and re-welding with new material.  Excluding removal of cladding and insulation if required."]
[{"v":37.069999999999986,"d":"37.07"},"Carry out window repairs of 10.0m in total of 10mm thick ducting plate by cutting out and re-welding with new material.  Excluding removal of cladding and insulation if required."]
[38,"Transition Ducting Cold End",null,"X","X","X","X"]
[{"$f":"A414+0.01","v":38.01},"Carry out window repairs of 5.0m in total of 6mm thick ducting plate by cutting out and re-welding with new material.  Excluding removal of cladding and insulation if required.",null,null,"X","X"]
[{"$f":"A415+0.01","v":{"v":38.019999999999996,"d":"38.02"}},"Carry out window repairs of 10.0m in total of 6mm thick ducting plate by cutting out and re-welding with new material.  Excluding removal of cladding and insulation if required.",{"$nulls":4},"X"]
[{"v":38.029999999999994,"d":"38.03"},"Carry out window repairs of 20.0m in total of 6mm thick ducting plate by cutting out and re-welding with new material.  Excluding removal of cladding and insulation if required."]
[{"v":38.03999999999999,"d":"38.04"},"Carry out window repairs of 5.0m in total of 8mm thick ducting plate by cutting out and re-welding with new material.  Excluding removal of cladding and insulation if required."]
[{"v":38.04999999999999,"d":"38.05"},"Carry out window repairs of 10.0m in total of 8mm thick ducting plate by cutting out and re-welding with new material.  Excluding removal of cladding and insulation if required."]
[{"v":38.05999999999999,"d":"38.06"},"Carry out window repairs of 5.0m in total of 10mm thick ducting plate by cutting out and re-welding with new material.  Excluding removal of cladding and insulation if required."]
[{"v":38.069999999999986,"d":"38.07"},"Carry out window repairs of 10.0m in total of 10mm thick ducting plate by cutting out and re-welding with new material.  Excluding removal of cladding and insulation if required."]
[39,"Sootblower System - Reciprocating",null,"X","X","X","X"]
[{"$f":"A422+0.01","v":39.01},"Inspect all the sootblower nozzles dimensionally and for erosion on the inside"]
[{"$f":"A423+0.01","v":{"v":39.019999999999996,"d":"39.02"}},"Inspect the sootblower pipe for damage and erosion"]
[{"v":39.029999999999994,"d":"39.03"},"Inspect the sootblower pipe erosion protection plates"]
[{"v":39.03999999999999,"d":"39.04"},"Inspect the sootblower support piping"]
[{"v":39.04999999999999,"d":"39.05"},"Inspect sootblower reciprocating system"]
[{"v":39.05999999999999,"d":"39.06"},"Remove complete sootblower lance"]
[{"v":39.069999999999986,"d":"39.07"},"Refit complete sootblower lance"]
[{"v":39.079999999999984,"d":"39.08"},"Remove 1m off worn sootblower erosion protection plates"]
[{"v":39.08999999999998,"d":"39.09"},"Refit 1m off new sootblower erosion protection plates"]
[{"v":39.09999999999998,"d":"39.10"},"Remove 5m off worn sootblower erosion protection plates"]
[{"v":39.10999999999998,"d":"39.11"},"Refit 5m off new sootblower erosion protection plates"]
[40,"Fire Protection System",null,"X","X","X","X"]
[{"$f":"A434+0.01","v":40.01},"Remove 1 fire protection system spray nozzle only excluding piping",null,null,"X"]
[{"$f":"A435+0.01","v":{"v":40.019999999999996,"d":"40.02"}},"Refit 1 fire protection system spray nozzle",null,null,"X"]
[{"v":40.029999999999994,"d":"40.03"},"Remove 5 fire protection system spray nozzles only excluding piping",{"$nulls":3},"X","X"]
[{"v":40.03999999999999,"d":"40.04"},"Refit 5 fire protection system spray nozzles",{"$nulls":3},"X","X"]
[{"v":40.04999999999999,"d":"40.05"},"Remove 10 fire protection system spray nozzles only excluding piping"]
[{"v":40.05999999999999,"d":"40.06"},"Refit 10 fire protection system spray nozzles"]
[{"v":40.069999999999986,"d":"40.07"},"Remove 1m of fire protection system piping including erosion protection"]
[{"v":40.079999999999984,"d":"40.08"},"Refit 1m of fire protection system piping excluding erosion protection"]
[{"v":40.08999999999998,"d":"40.09"},"Remove 5m of fire protection system piping including erosion protection"]
[{"v":40.09999999999998,"d":"40.10"},"Refit 5m of fire protection system piping excluding erosion protection"]
[{"v":40.10999999999998,"d":"40.11"},"Remove 10m of fire protection system piping including erosion protection"]
[{"v":40.119999999999976,"d":"40.12"},"Refit 10m of fire protection system piping excluding erosion protection"]
[{"v":40.129999999999974,"d":"40.13"},"Remove 1m of fire protection system erosion protection",null,null,"X"]
[{"v":40.13999999999997,"d":"40.14"},"Refit 1m of fire protection system erosion protection",null,null,"X"]
[{"v":40.14999999999997,"d":"40.15"},"Remove 5m of fire protection system erosion protection",{"$nulls":3},"X"]
[{"v":40.15999999999997,"d":"40.16"},"Refit 5m of fire protection system erosion protection",{"$nulls":3},"X"]
[{"v":40.169999999999966,"d":"40.17"},"Remove 10m of fire protection system erosion protection",{"$nulls":4},"X"]
[{"v":40.179999999999964,"d":"40.18"},"Refit 10m of fire protection system erosion protection",{"$nulls":4},"X"]
[{"v":40.18999999999996,"d":"40.19"},"Remove 1 fire protection system compensator bellow"]
[{"v":40.19999999999996,"d":"40.20"},"Refit 1 fire protection system compensator bellow"]
[{"v":40.20999999999996,"d":"40.21"},"Test fire protection system manually during air heater washing",{"$nulls":4},"X"]
[41,"Fire Detection System",null,"X","X","X","X"]
[{"$f":"A456+0.01","v":41.01},"Remove one thermocouple pocket ",null,null,"X"]
[{"$f":"A457+0.01","v":{"v":41.019999999999996,"d":"41.02"}},"Refit one thermocouple pocket",null,null,"X"]
[{"v":41.029999999999994,"d":"41.03"},"Remove four thermocouple pockets",{"$nulls":3},"X","X"]
[{"v":41.03999999999999,"d":"41.04"},"Refit four thermocouple pockets",{"$nulls":3},"X","X"]
[{"v":41.04999999999999,"d":"41.05"},"Remove one thermocouple pocket erosion protection",null,null,"X"]
[{"v":41.05999999999999,"d":"41.06"},"Refit one thermocouple pocket erosion protection",null,null,"X"]
[{"v":41.069999999999986,"d":"41.07"},"Remove four thermocouple pocket erosion protection",{"$nulls":3},"X","X"]
[{"v":41.079999999999984,"d":"41.08"},"Refit four thermocouple pocket erosion protection",{"$nulls":3},"X","X"]
[42,"Seal Setting Cold Condition",null,"X","X","X","X"]
[{"$f":"A465+0.01","v":42.01},"Carry out complete cold condition setting of all the radial spring pins and actuators (66 Off)",null,null,"X","X","X"]
[{"$f":"A466+0.01","v":{"v":42.019999999999996,"d":"42.02"}},"Carry out complete cold condition setting of 2 actuated spring pin assemblies and 12 off spring pin assemblies on the axial seals.",null,null,"X","X","X"]
[43,"Seal Setting Hot Condition",null,"X","X","X","X"]
[{"$f":"A468+0.01","v":43.01},"Carry out complete hot condition seal setting of all the spring pins and actuators on the radial plates",null,null,"X","X","X"]
[{"$f":"A469+0.01","v":{"v":43.019999999999996,"d":"43.02"}},"Carry out complete hot condition seal setting of all the spring pins and actuators on the axial plates",null,null,"X","X","X"]
[44,"Commissioning",null,"X","X","X","X"]
[{"$f":"A471+0.01","v":44.01},"Check cooling water flow to shaft union is correct",null,null,"X","X","X"]
[{"$f":"A472+0.01","v":{"v":44.019999999999996,"d":"44.02"}},"Test run air heater and ensure heaters runs freely",null,null,"X","X","X"]
[{"$f":"A473+0.01","v":{"v":44.029999999999994,"d":"44.03"}},"Ensure that all the view ports are closed",null,null,"X","X","X"]